Cogmind - Beta 13 @@@ ROGUE MODE // 2024.04.02 @ 17:03:58 Player: Abkaal Result: Destroyed self with Rocket Launcher Performance ------------- Evolutions (2) 1000 Regions Visited (9) 1800 Robots Destroyed (110) 550 Value Destroyed (3504) 3504 Prototype IDs (7) 140 Alien Tech Used (0) 0 Bonus (1205) 1205 TOTAL SCORE: 8199 Bonus ------- High Alert Combat Kills 156 Follower Combat Kills 208 Entered Garrisons 200 Used RIF Installer 500 Aligned with FarCom 300 Friendly Fire -159 Cogmind --------- Core Integrity 0/550 Matter 279/300 Energy 74/100 System Corruption 0% Temperature Cool (0) Movement Walking (185) Ox1 Location -8/Materials Parts ------- > --- POWER (1) -------- (None) > --- PROPULSION (3) --- Carbon-fiber Leg VSS Leg > --- UTILITY (4) ------ Large Storage Unit System Shield > --- WEAPON (3) ------- Heavy Laser Rocket Launcher Flail > --- INVENTORY (15) --- VSS Leg Improved Signal Interpreter Relay Coupler [Swarmer] (29) Relay Coupler [Sentry] (17) Relay Coupler [Hunter] (17) Heavy Particle Gun Heavy Particle Gun Improved Light Cannon Mining Claw Peak State ------------ > --- POWER ------------ Light Deuterium Engine > --- PROPULSION ------- Titanium Leg VSS Leg VSS Leg > --- UTILITY ---------- Large Storage Unit Improved Targeting Computer System Shield Thief Drone Bay > --- WEAPON ----------- Improved EM Shotgun Beamcaster Minigun > --- INVENTORY -------- Light Nuclear Core Aluminum Leg Carbon-fiber Leg VSS Leg Improved Signal Interpreter Hardened Light Armor Plating Relay Coupler [Swarmer] Relay Coupler [Sentry] Relay Coupler [Hunter] Field Recycling Unit Heavy Particle Gun Heavy Particle Cannon Datajack Flail Mining Claw [Rating: 40] Favorites ----------- Power Reinforced Ion Engine Engine Reinforced Ion Engine Power Core Light Nuclear Core Propulsion Improved Aluminum Leg Leg Improved Aluminum Leg Wheel Armored Wheel Utility Large Storage Unit Device Improved Heat Sink Storage Large Storage Unit Processor Signal Interpreter Hackware System Shield Protection Improved Power Shielding Weapon Light Cannon Energy Gun Beam Rifle Energy Cannon Heavy Particle Cannon Ballistic Gun Minigun Ballistic Cannon Light Cannon Launcher Mini Grenade Launcher Special Weapon Field Lobotomy Kit Impact Weapon Flail Slashing Weapon Mining Claw Special Melee Weapon Datajack Build | -11 -10 -10 -9 -9 -9 -8 -8 -8 -8 ------- Run | Yrd Mat Min Mat Min Exi Min Mat Gar Mat Slots Evolved 4 | . . . 2 . . . 2 . . Power . | . . . . . . . . . . Propulsion 1 | . . . . . . . 1 . . Utility 2 | . . . 1 . . . 1 . . Weapon 1 | . . . 1 . . . . . . Parts Attached 112 | 5 27 1 29 1 2 . 24 4 19 Power 11 | 1 2 . 4 . . . 1 . 3 Engine 9 | 1 2 . 3 . . . 1 . 2 Core 2 | . . . 1 . . . . . 1 Reactor . | . . . . . . . . . . Propulsion 24 | 2 3 . 6 . 1 . 8 . 4 Treads . | . . . . . . . . . . Leg 17 | . . . 4 . 1 . 8 . 4 Wheel 7 | 2 3 . 2 . . . . . . Hover . | . . . . . . . . . . Flight . | . . . . . . . . . . Utility 25 | . 5 . 7 . . . 8 1 4 Device 13 | . 3 . 4 . . . 4 1 1 Storage 4 | . . . 1 . . . 2 . 1 Processor 3 | . 2 . . . . . 1 . . Hackware 1 | . . . . . . . 1 . . Protection 4 | . . . 2 . . . . . 2 Artifact . | . . . . . . . . . . Weapon 52 | 2 17 1 12 1 1 . 7 3 8 Energy Gun 15 | 1 5 . 2 . . . 3 2 2 Energy Cannon 5 | . 3 . . . . . 1 . 1 Ballistic Gun 5 | 1 . . 2 . . . 2 . . Ballistic Cannon 3 | . . . 1 . . . . . 2 Launcher 7 | . 1 1 4 . . . . . 1 Special Weapon 4 | . 2 . 1 . 1 . . . . Impact Weapon 2 | . . . . . . . . . 2 Slashing Weapon 3 | . . . 2 . . . 1 . . Piercing Weapon . | . . . . . . . . . . Special Melee Weapon 8 | . 6 . . 1 . . . 1 . Unidentified Prototypes 3 | . . . . . 1 . . 2 . Parts Lost 28 | . 1 1 8 1 . . 3 . 14 Power 3 | . . . . . . . . . 3 Propulsion 6 | . . . 3 . . . . . 3 Utility 7 | . . . 1 . . . 2 . 4 Weapon 12 | . 1 1 4 1 . . 1 . 4 Highest Loss Streak 4 | . 1 1 2 1 . . 2 . 4 To Critical Strikes . | . . . . . . . . . . Average Slot Usage (%) 97 | . 96 100 96 100 99 100 99 99 94 Engine 10 | . 14 14 10 11 11 11 9 9 4 Leg 18 | . . . 13 22 21 22 26 27 26 Wheel 5 | . 27 28 7 . . . . . . Device 5 | . 11 . 4 . . . 10 8 8 Storage 8 | . . . 11 11 11 11 9 9 8 Processor 10 | . 13 28 11 11 11 11 6 9 7 Hackware 1 | . . . . . . . 1 9 9 Protection 5 | . . . 5 11 11 11 7 . 1 Energy Gun 9 | . 8 14 3 11 11 11 13 13 11 Energy Cannon 1 | . 10 . . . . . 1 4 . Ballistic Gun 4 | . . . 6 . . . 4 9 7 Ballistic Cannon 5 | . . . 7 11 11 11 4 . 1 Launcher 3 | . 5 6 11 . . . . . . Special Weapon 1 | . 1 . . . . 11 2 . . Special Melee Weapon 2 | . 1 7 . 11 11 . . . . Naked Turns . | . . . . . . . . . . Heaviest Build 98 | 5 13 11 45 39 46 46 98 40 46 Greatest Support 44 | 20 24 24 26 26 26 23 42 41 44 Greatest Overweight (x) 4 | . . . 4 1 2 1 2 . 1 Average Overweight (x) . | . . . 1 1 1 1 . . . Largest Inventory Capacity 25 | 5 5 5 15 15 15 15 25 15 15 Average Capacity 13 | 5 5 5 15 15 15 15 15 15 14 Most Carried 15 | 5 5 5 15 15 15 15 15 15 15 Average Carried 13 | 2 4 4 14 14 14 14 14 14 13 Final Capacity 15 | 5 5 5 15 15 15 15 15 15 15 Final Carried 15 | 3 5 4 15 15 14 15 15 15 9 Class Distribution -------------------- 29% | Scavenger-Mutant 22% | Skirmisher 17% | Mutant 11% | Scavenger-Skirmisher 11% | Bomber 4% | Scavenger-Gunner Dominant Class ---------------- Mutant | -10/Materials Scavenger-Mutant | -10/Mines Bomber | -9/Materials Scavenger-Mutant | -9/Mines Scavenger-Mutant | -9/Exiles Scavenger-Skirmisher | -8/Mines Skirmisher | -8/Materials Skirmisher | -8/Garrison Mutant | -8/Materials Resources | -11 -10 -10 -9 -9 -9 -8 -8 -8 -8 ----------- Run | Yrd Mat Min Mat Min Exi Min Mat Gar Mat Matter Collected 2297 | 256 295 40 836 19 . 20 306 170 355 Remotely . | . . . . . . . . . . Salvage Created 3620 | 34 464 59 1278 10 . . 867 114 794 Parts 219 | 2 31 2 93 5 . . 50 6 30 Haulers Intercepted 4 | . 1 . 3 . . . . . . Recyclers Shooed 2 | . . . 1 . . . . . 1 Parts Field Recycled 23 | . . . 23 . . . . . . Retrieved Matter 137 | . . . 137 . . . . . . Parts Self-Destructed . | . . . . . . . . . . Prevented . | . . . . . . . . . . Kills | -11 -10 -10 -9 -9 -9 -8 -8 -8 -8 ------- Run | Yrd Mat Min Mat Min Exi Min Mat Gar Mat Combat Hostiles Destroyed 74 | 1 11 2 27 3 . . 14 4 12 Melee 7 | . . . . . . . 4 . 3 Guns 26 | 1 5 . 1 . . . 9 3 7 Cannons 12 | . 5 . 5 . . . 1 1 . AOE 28 | . 1 2 21 3 . . . . 1 Classes Destroyed 13 | 1 3 . 7 . . . 2 . . Worker 12 | . . . 8 . . . 2 . 2 Builder 4 | . . . 3 . . . 1 . . Tunneler 1 | . . . 1 . . . . . . Hauler 4 | . 1 . 3 . . . . . . Recycler 3 | . . . 2 . . . . . 1 Operator 1 | . . . 1 . . . . . . Watcher 10 | . 3 . 4 . . . 1 . 2 Swarmer 12 | . 3 . 3 3 . . . 3 . Grunt 46 | 1 8 2 17 . . . 8 1 9 Brawler 1 | . . . 1 . . . . . . Duelist 1 | . . . . . . . 1 . . Sentry 14 | . . . 6 . . . 5 . 3 Hunter 1 | . . . . . . . 1 . . Best Kill Streak 7 | 1 4 2 7 3 . . 4 1 3 Combat Bots Only 4 | 1 3 2 4 3 . . 3 1 3 Max Kills in Single Turn 6 | 1 1 1 6 3 . . 2 1 1 Gunslinging . | . . . . . . . . . . Exploded 3 | . 1 1 3 3 . . . . 1 Melee 1 | . . . . . . . 1 . 1 Uniques/NPCs Destroyed . | . . . . . . . . . . Combat | -11 -10 -10 -9 -9 -9 -8 -8 -8 -8 -------- Run | Yrd Mat Min Mat Min Exi Min Mat Gar Mat Hostile Shots Fired 499 | 9 47 17 83 6 . 3 72 11 251 Missed 181 | 1 8 6 30 1 . 1 21 4 109 Damage Taken 4875 | 89 439 153 1032 52 . 37 763 51 2259 Core 952 | 21 121 46 190 . . 18 154 17 385 Absorbed by Shields 212 | . . . . . . . . . 212 Redirected to Shielding 57 | . . . 12 . . . 45 . . Regen/Repaired (Parts) 352 | . . . . . . . 69 . 283 Core Remaining (%) 54 | 91 . 24 . . . 48 . . . Volleys Fired 261 | 6 72 6 70 2 . 2 37 15 51 Largest 3 | 2 2 2 3 2 . 1 3 3 3 Hottest 150 | 60 136 95 121 91 . . 150 150 145 Shots Fired 499 | 12 95 9 134 3 . 2 83 40 121 Gun 307 | 12 25 6 55 1 . . 64 35 109 Cannon 105 | . 41 . 31 1 . . 16 5 11 Launcher 56 | . 3 3 48 1 . . . . 1 Special 31 | . 26 . . . . 2 3 . . Kinetic 186 | 6 . . 76 1 . . 34 15 54 Thermal 208 | 6 92 6 10 1 . . 27 14 52 Explosive 35 | . 3 3 27 1 . . . . 1 Electromagnetic 65 | . . . 21 . . . 19 11 14 Robot Hit Streak 11 | 6 9 10 11 . . 2 8 7 11 Robot Miss Streak 6 | 1 6 2 5 2 . . 4 5 5 Penetration Max . | . . . . . . . . . . Secondary Targets 3 | . . . . . . . . . 3 Max Gunslinging Chain 1 | . . . . . . . . . 1 Shots Hit Robots 321 | 9 55 14 77 . . 2 58 17 89 Core Hits 175 | 4 20 4 72 2 . . 32 8 33 Critical Kills . | . . . . . . . . . . Critical Parts Destroyed 1 | . . . . . . . . . 1 Critical Strikes 17 | . 1 . . . . . 9 1 6 Burn 8 | . 1 . . . . . 2 1 4 Blast 3 | . . . . . . . 2 . 1 Smash 1 | . . . . . . . . . 1 Sever 5 | . . . . . . . 5 . . Melee Attacks 62 | . 10 11 10 . . . 15 . 16 Impact 16 | . . . . . . . . . 16 Slashing 25 | . . . 10 . . . 15 . . Piercing . | . . . . . . . . . . Sneak Attacks 18 | . 8 7 . . . . . . 3 Combat Hostiles . | . . . . . . . . . . Follow-up Attacks . | . . . . . . . . . . Damage Inflicted 7587 | 114 811 165 2852 148 . . 1087 306 2104 Guns 3216 | 114 229 57 575 . . . 677 231 1333 Cannons 1151 | . 512 . 336 . . . 98 75 130 Explosions 2465 | . 54 108 1941 148 . . 96 . 118 Melee 739 | . . . . . . . 216 . 523 Ramming . | . . . . . . . . . . Kinetic 1871 | 50 . . 838 . . . 347 66 570 Thermal 2233 | 64 757 57 125 50 . . 318 158 704 Explosive 1787 | . 54 108 1409 98 . . . . 118 Electromagnetic 957 | . . . 480 . . . 206 82 189 Impact 523 | . . . . . . . . . 523 Slashing 216 | . . . . . . . 216 . . Piercing . | . . . . . . . . . . Highest Corruption 1 | . 1 1 . . . . . . . Average Corruption 1 | . 1 1 . . . . . . . Corruption Purged . | . . . . . . . . . . Corruption Blocked . | . . . . . . . . . . Effects 7 | . 3 4 . . . . . . . Message Errors 1 | . . 1 . . . . . . . Matter Fused 1 | . . 1 . . . . . . . Heat Flow Errors 1 | . . 1 . . . . . . . Energy Discharges 1 | . . 1 . . . . . . . Parts Rejected 1 | . 1 . . . . . . . . Data Loss (minor) 1 | . 1 . . . . . . . . Misfires 1 | . 1 . . . . . . . . Overload Shots . | . . . . . . . . . . Overflow Damage 228 | . . . 101 19 . . . 5 103 Projectiles 8 | . . . 3 . . . . 5 . Explosions 117 | . . . 98 19 . . . . . Melee 103 | . . . . . . . . . 103 Knockbacks 11 | . . . 4 . . . 2 . 5 Impact 3 | . . . . . . . . . 3 Kinetic 8 | . . . 4 . . . 2 . 2 Secondary . | . . . . . . . . . . Self-Inflicted Damage 419 | . . 5 337 14 . . 35 . 28 Shots 19 | . . 1 15 1 . . 1 . 1 Rammed . | . . . . . . . . . . Targets Rammed . | . . . . . . . . . . Kicked . | . . . . . . . . . . Crushed . | . . . . . . . . . . Highest Temperature 493 | 70 285 104 107 41 . 8 409 132 493 Average Temperature 79 | 31 63 46 24 27 . 8 95 43 120 Received Heat Transfer 1521 | 48 216 84 309 . . 36 324 . 504 Effects 7 | . . . . . . . 2 . 5 Shutdowns 2 | . . . . . . . . . 2 Energy Bleed 4 | . . . . . . . 2 . 2 Short Circuit 1 | . . . . . . . . . 1 Siege Activations . | . . . . . . . . . . Robots Corrupted . | . . . . . . . . . . Combat Hostiles . | . . . . . . . . . . Parts Fried 4 | . . . 1 . . . . . 3 Impact Corruptions 6 | . . . . . . . . . 6 Robots Melted . | . . . . . . . . . . Combat Hostiles . | . . . . . . . . . . Parts Melted 6 | 1 1 . . . . . 3 . 1 Heat Transferred 4865 | 150 1679 148 236 100 . . 803 232 1517 Parts Sabotaged . | . . . . . . . . . . Parts Stolen . | . . . . . . . . . . Parts Stripped . | . . . . . . . . . . Power Chain Reactions 6 | . . . 5 . . . 1 . . Alert | -11 -10 -10 -9 -9 -9 -8 -8 -8 -8 ------- Run | Yrd Mat Min Mat Min Exi Min Mat Gar Mat Peak Influence 684 | 20 262 99 684 359 . 41 220 307 343 Initial 245 | . 13 46 38 245 . . 15 82 149 Average 249 | 1 139 70 479 356 . 37 87 176 238 Maximum Alert Level 2 | . 1 . 2 1 . . 1 1 1 Low Security (%) 49 | 100 72 100 6 . . 100 86 71 32 Level 1 25 | . 27 . 13 100 . . 13 28 67 Level 2 24 | . . . 80 . . . . . . Level 3 . | . . . . . . . . . . Level 4 . | . . . . . . . . . . Level 5 . | . . . . . . . . . . High Security . | . . . . . . . . . . Max Security . | . . . . . . . . . . Squads Dispatched 16 | . 2 . 8 . . . 3 . 3 Investigation 6 | . 1 . 3 . . . 1 . 1 Extermination . | . . . . . . . . . . Reinforcement 10 | . 1 . 5 . . . 2 . 2 Assault . | . . . . . . . . . . Garrison . | . . . . . . . . . . Intercept . | . . . . . . . . . . Searches Triggered . | . . . . . . . . . . Construction Impeded 2 | . . . 2 . . . . . . Haulers Reinforced . | . . . . . . . . . . Active Scanning Responses . | . . . . . . . . . . Cargo Convoy Interrupts . | . . . . . . . . . . Stealth | -11 -10 -10 -9 -9 -9 -8 -8 -8 -8 --------- Run | Yrd Mat Min Mat Min Exi Min Mat Gar Mat Distress Signals 9 | . 1 . 4 . . . 2 . 2 Communications Jammed . | . . . . . . . . . . Distress Signals . | . . . . . . . . . . Times Spotted 136 | 1 17 2 43 3 . 2 26 6 36 Peak Tracking Total 7 | 1 4 2 7 3 . 2 6 6 6 Tactical Retreats 12 | . 1 . 2 . . . . 1 8 Traps | -11 -10 -10 -9 -9 -9 -8 -8 -8 -8 ------- Run | Yrd Mat Min Mat Min Exi Min Mat Gar Mat Traps Triggered 4 | . . . 1 . . . 1 1 1 Indirectly . | . . . . . . . . . . Trap Hack Attempts 20 | . . . . . . . . 20 . Triggered . | . . . . . . . . . . Disarmed . | . . . . . . . . . . Reprogrammed 5 | . . . . . . . 4 1 . Reused 3 | . . . . . . . 2 1 . Traps Extracted . | . . . . . . . . . . Installed . | . . . . . . . . . . Triggered 3 | . . . . . . . 2 1 . Machines | -11 -10 -10 -9 -9 -9 -8 -8 -8 -8 ---------- Run | Yrd Mat Min Mat Min Exi Min Mat Gar Mat Machines Disabled 16 | . 4 . 5 2 . . 1 2 2 Max in Single Turn 2 | . 1 . 1 2 . . . 1 1 Garrison Relay 2 | . . . . . . . . 2 . Machines Repaired . | . . . . . . . . . . Machines Dismantled . | . . . . . . . . . . Machines Sabotaged . | . . . . . . . . . . Overloaded Fab Kills . | . . . . . . . . . . Hacking | -11 -10 -10 -9 -9 -9 -8 -8 -8 -8 --------- Run | Yrd Mat Min Mat Min Exi Min Mat Gar Mat Machines Accessed 28 | . 5 . 7 1 4 1 5 . 5 Terminals 18 | . 4 . 7 . . 1 3 . 3 Fabricators . | . . . . . . . . . . Repair Stations 3 | . . . . . . . 1 . 2 Recycling Units 1 | . 1 . . . . . . . . Scanalyzers . | . . . . . . . . . . Garrison Access 1 | . . . . . . . 1 . . Total Hacks 154 | . 12 . 19 1 49 4 26 . 43 Successful 113 | . 6 . 11 1 49 3 17 . 26 Failed 39 | . 6 . 7 . . 1 8 . 17 Catastrophic 5 | . 2 . 1 . . . 1 . 1 Database Lockouts 2 | . . . 1 . . . 1 . . Manual 28 | . 6 . 7 . 1 2 4 . 8 Terminals 72 | . 10 . 19 . . 4 19 . 20 Fabricators . | . . . . . . . . . . Repair Stations 28 | . . . . . . . 5 . 23 Recycling Units 2 | . 2 . . . . . . . . Scanalyzers . | . . . . . . . . . . Garrison Access 2 | . . . . . . . 2 . . Terminal Hacks 89 | . 5 . 11 1 49 3 10 . 10 Record 71 | . 3 . 4 . 49 3 4 . 8 Robot Analysis 1 | . . . . . . . 1 . . Prototype ID Bank 2 | . 1 . 1 . . . . . . Open Door 1 | . . . . 1 . . . . . Emergency Access Points 2 | . . . 1 . . . 1 . . Alert Level 3 | . . . 2 . . . 1 . . Locate Traps 1 | . . . . . . . 1 . . Reprogram Traps 1 | . . . . . . . 1 . . Dispatch Records 1 | . . . 1 . . . . . . Maintenance Status 2 | . . . 2 . . . . . . Transport Status 1 | . 1 . . . . . . . . Investigation Status 1 | . . . . . . . . . 1 Reinforcement Status 1 | . . . . . . . 1 . . Hauler Manifests 1 | . . . . . . . . . 1 Fabricator Hacks . | . . . . . . . . . . Repair Station Hacks 21 | . . . . . . . 5 . 16 Scan Component 12 | . . . . . . . 3 . 9 Repair 9 | . . . . . . . 2 . 7 Recycling Unit Hacks 1 | . 1 . . . . . . . . Report Inventory 1 | . 1 . . . . . . . . Scanalyzer . | . . . . . . . . . . Garrison Access Hacks 2 | . . . . . . . 2 . . Unlock Access 1 | . . . . . . . 1 . . Coupler Status 1 | . . . . . . . 1 . . Unauthorized Hacks . | . . . . . . . . . . Terminals . | . . . . . . . . . . Fabricators . | . . . . . . . . . . Repair Stations . | . . . . . . . . . . Recycling Units . | . . . . . . . . . . Scanalyzers . | . . . . . . . . . . Garrison Access . | . . . . . . . . . . Data Cores Recovered . | . . . . . . . . . . Used . | . . . . . . . . . . Hacking Detections 19 | . 4 . 5 . . 1 4 . 5 Full Trace Events 6 | . 3 . 2 . . . . . 1 Feedback Events 1 | . 1 . . . . . . . . Corruption 1 | . 1 . . . . . . . . Feedback Blocked . | . . . . . . . . . . Robot Schematics Acquired . | . . . . . . . . . . Robots Built . | . . . . . . . . . . Authchips . | . . . . . . . . . . Time . | . . . . . . . . . . Total Robot Build Rating . | . . . . . . . . . . Part Schematics Acquired . | . . . . . . . . . . Parts Built . | . . . . . . . . . . Authchips . | . . . . . . . . . . Time . | . . . . . . . . . . Total Part Build Rating . | . . . . . . . . . . Parts Repaired 9 | . . . . . . . 2 . 7 Time 350 | . . . . . . . 70 . 280 Parts Recycled . | . . . . . . . . . . Recycled Matter . | . . . . . . . . . . Retrieved Matter . | . . . . . . . . . . Retrieved Components . | . . . . . . . . . . Parts Scanalyzed . | . . . . . . . . . . Part Schematics Acquired . | . . . . . . . . . . Parts Damaged . | . . . . . . . . . . Bothacking | -11 -10 -10 -9 -9 -9 -8 -8 -8 -8 ------------ Run | Yrd Mat Min Mat Min Exi Min Mat Gar Mat Used RIF Installer 1 | . . . . . . . . 1 . Robots Hacked 11 | . 5 6 . . . . . . . Non-combat 9 | . 4 5 . . . . . . . Combat 2 | . 1 1 . . . . . . . Robot Hacks Applied 14 | . 8 6 . . . . . . . parse_system 11 | . 5 6 . . . . . . . no_distress 2 | . 2 . . . . . . . . find_recycling 1 | . 1 . . . . . . . . Relay Couplers Released 6 | . . . . . . . . 6 . Machine Destruction 6 | . . . . . . . . 6 . Fabnet Peak Effective % . | . . . . . . . . . . Robots Rewired . | . . . . . . . . . . Allies Hacked . | . . . . . . . . . . Hacks Repelled . | . . . . . . . . . . Allies | -11 -10 -10 -9 -9 -9 -8 -8 -8 -8 -------- Run | Yrd Mat Min Mat Min Exi Min Mat Gar Mat Total Allies 5 | . . . . . . 2 3 . . Largest Group 2 | . . . . . . 2 2 . . Highest-Rated Group 45 | . . . . . . 45 45 . . Highest-Rated Ally 29 | . . . . . . 29 29 . . Total Orders . | . . . . . . . . . . Ally Attacks 53 | . . . . . . 4 34 . 15 Total Damage 793 | . . . . . . 48 671 . 74 Kills 8 | . . . . . . 1 6 . 1 Allies Corrupted . | . . . . . . . . . . Allies Melted . | . . . . . . . . . . Field Lobotomies 5 | . . . . . . 2 3 . . Intel | -11 -10 -10 -9 -9 -9 -8 -8 -8 -8 ------- Run | Yrd Mat Min Mat Min Exi Min Mat Gar Mat Robot Analysis Total 1 | . . . . . . . 1 . . Derelict Logs Recovered 2 | . . 2 . . . . . . . Drone Launches 5 | . . . . . . . . . 5 Drone Recoveries 4 | . . . . . . . . . 4 Exploration | -11 -10 -10 -9 -9 -9 -8 -8 -8 -8 ------------- Run | Yrd Mat Min Mat Min Exi Min Mat Gar Mat Turns Passed 9425 | 80 894 388 2377 240 1759 245 1673 676 1093 Spaces Moved 5582 | 68 676 390 1335 123 921 123 892 497 557 Core 26 | 26 . . . . . . . . . Treads . | . . . . . . . . . . Legs 3632 | . . . 519 123 921 123 892 497 557 Wheels 1924 | 42 676 390 816 . . . . . . Hover . | . . . . . . . . . . Flight . | . . . . . . . . . . Fastest Speed 50 | 50 80 90 95 190 190 190 103 103 103 Average Speed 138 | 68 89 90 148 190 190 190 156 103 113 Slowest Speed 269 | 80 90 90 260 190 260 190 269 103 190 Overloaded Moves . | . . . . . . . . . . Propulsion Burnouts . | . . . . . . . . . . Robots Hopped . | . . . . . . . . . . Cave-ins Triggered . | . . . . . . . . . . Exploration Rate (%) 53 | 5 79 81 79 22 94 45 49 43 39 Regions Visited 9 Branch Regions 4 Pre-discovered Areas 2 | . . 1 . . 1 . . . . Known Exits Taken 7 | . 1 1 1 1 1 1 1 . . Unknown Exits Taken 1 | 1 . . . . . . . . . Scrap Searched 3 | . . 1 . 1 . 1 . . . Spaces Dug 48 | . . . 44 . . . . . 4 Terrain Destroyed 294 | . 26 14 219 27 . . 3 . 5 Melee 7 | . . . 7 . . . . . . Projectile 2 | . . . . . . . 1 . 1 AOE 285 | . 26 14 212 27 . . 2 . 4 Terrain Rammed . | . . . . . . . . . . Walls Destroyed . | . . . . . . . . . . Machines Disabled . | . . . . . . . . . . Actions | -11 -10 -10 -9 -9 -9 -8 -8 -8 -8 --------- Run | Yrd Mat Min Mat Min Exi Min Mat Gar Mat Total 6745 | 90 859 412 1586 127 930 131 1076 634 900 Wait 524 | 4 34 4 93 . 4 4 70 84 227 Move 5572 | 67 675 389 1334 122 920 122 891 495 557 Hop . | . . . . . . . . . . Pick Up 105 | 8 22 . 29 1 1 2 15 5 22 Fast Attach 29 | . 1 1 9 1 1 . 10 . 6 Attach 37 | 5 6 . 7 . . . 8 2 9 Detach 9 | . . . 2 . . . 6 1 . Swap 46 | . 20 . 13 . 1 . 6 2 4 Drop 75 | . 19 1 19 1 3 1 18 5 8 Fire 261 | 6 72 6 70 2 . 2 37 15 51 Melee 62 | . 10 11 10 . . . 15 . 16 Ram . | . . . . . . . . . . Kick . | . . . . . . . . . . Crush . | . . . . . . . . . . Escape Stasis 5 | . . . . . . . . 5 . Rewire . | . . . . . . . . . . Trap 20 | . . . . . . . . 20 . Miscellaneous . | . . . . . . . . . . Route ------- -11/Scrapyard -10/Materials (discovered 4 exits: *Mat x2 / *Min x2) -10/Mines (discovered 2 exits: *Mat x2) -9/Materials (discovered 3 exits: *Mat x2 / *Min) -9/Mines -9/Exiles (discovered 2 exits: *Min x2) -8/Mines -8/Materials (discovered 2 exits: [*Sto] / Gar) -8/Garrison -8/Materials (discovered 1 exit: [*Sto]) History --------- Turn | Location | Event 2 | -11/Scrapyard | Met Revision 17 52 | -11/Scrapyard | Discovered new exit (range 8) 81 | -11/Scrapyard | Entered Materials 312 | -10/Materials | Build established: Mutant 452 | -10/Materials | Discovered new exit (range 16) 564 | -10/Materials | Core integrity fell below 50% 793 | -10/Materials | Discovered new exit (range 18) 884 | -10/Materials | Identified exit to Mines 964 | -10/Materials | Discovered new exit (range 17) 966 | -10/Materials | Discovered exit to Mines (range 11) 975 | -10/Materials | Entered Mines 986 | -10/Mines | Discovered new exit (range 7) 992 | -10/Mines | Identified exit to Materials 1001 | -10/Mines | Build established: Scavenger-Mutant 1257 | -10/Mines | Learned Materials stockpile data 1287 | -10/Mines | Discovered exit to Materials (range 12) 1298 | -10/Mines | Learned Materials terminal intel 1357 | -10/Mines | Learned location of Storage (-8) 1363 | -10/Mines | Entered Materials 1363 | -9/Materials | Evolved 2 slots: Utility x1, Weapon x1 1365 | -9/Materials | Loaded intel: 12 terminal locations 1955 | -9/Materials | Discovered new exit (range 5) 1960 | -9/Materials | Identified exit to Materials 2319 | -9/Materials | Build established: Scavenger-Gunner 2626 | -9/Materials | Discovered exit to Materials (range 15) 2854 | -9/Materials | Discovered new exit (range 15) 2930 | -9/Materials | Central database locked down 2945 | -9/Materials | Identified exit to Mines 3235 | -9/Materials | Build established: Bomber 3740 | -9/Materials | Entered Mines 3828 | -9/Mines | Found the Drone Emporium 3841 | -9/Mines | Found Prototype Device 3883 | -9/Mines | Deemed a non-threat by the Exiles lab entrance 3885 | -9/Mines | Discovered new exit (range 5) 3891 | -9/Mines | Identified exit to Exiles 3980 | -9/Mines | Entered Exiles 4013 | -9/Exiles | Discovered new exit (range 15) 4037 | -9/Exiles | Identified exit to Mines 4054 | -9/Exiles | Build established: Scavenger-Mutant 4074 | -9/Exiles | Met 8R-AWN 4108 | -9/Exiles | Met EX-HEX 4207 | -9/Exiles | Met EX-DEC 4267 | -9/Exiles | Learned location of Zion (-7) 4372 | -9/Exiles | Met EX-BIN 4406 | -9/Exiles | Aligned with FarCom system 4408 | -9/Exiles | Given EX-Vault access code 4742 | -9/Exiles | Discovered exit to Mines (range 14) 5015 | -9/Exiles | Visited The Gauntlet 5496 | -9/Exiles | Opened EX-Vault 5513 | -9/Exiles | Found Prototype Special Weapon 5556 | -9/Exiles | Warned to stay clear of 0b10 Research branches 5731 | -9/Exiles | Identified Field Lobotomy Kit 5739 | -9/Exiles | Left Exiles lab with Field Lobotomy Kit 5739 | -9/Exiles | Entered Mines 5739 | -8/Mines | Assimilated G-47 Trooper with FLK Orb 5741 | -8/Mines | Core integrity fell below 50% 5744 | -8/Mines | Assimilated G-50 Soldier with FLK Orb 5948 | -8/Mines | Discovered exit to Materials (range 10) 5984 | -8/Mines | Entered Materials 5984 | -8/Materials | Accompanied by 2 allies 5984 | -8/Materials | Evolved 2 slots: Propulsion x1, Utility x1 6022 | -8/Materials | Assimilated G-50 Soldier with FLK Orb 6025 | -8/Materials | Build established: Scavenger-Skirmisher 6124 | -8/Materials | Central database locked down 6267 | -8/Materials | Assimilated H-55 Commando with FLK Orb 6400 | -8/Materials | Assimilated Y-45 Defender with FLK Orb 6469 | -8/Materials | Discovered new exit (range 13) 6987 | -8/Materials | Build established: Skirmisher 7005 | -8/Materials | Repaired Reaction Control System 7038 | -8/Materials | Repaired Imp. Aluminum Leg 7656 | -8/Materials | Identified exit to Garrison 7657 | -8/Materials | Entered Garrison 7657 | -8/Garrison | Warlord forces raided the area 7686 | -8/Garrison | Triggered checkpoint 7710 | -8/Garrison | Warlord forces retreated 7716 | -8/Garrison | Triggered checkpoint 7732 | -8/Garrison | Triggered checkpoint 7789 | -8/Garrison | Garrison Relay disabled 7953 | -8/Garrison | Discovered new exit (range 13) 8030 | -8/Garrison | Triggered checkpoint 8212 | -8/Garrison | Triggered checkpoint 8232 | -8/Garrison | Installed Relay Interface Framework 8246 | -8/Garrison | Garrison Relay disabled 8263 | -8/Garrison | Identified Thief Drone Bay 8333 | -8/Garrison | Entered Materials 8463 | -8/Materials | Repaired Lrg. Storage Unit 8500 | -8/Materials | Repaired VSS Leg 8500 | -8/Materials | Repaired Imp. EM Shotgun 8538 | -8/Materials | Repaired Carbon-fiber Leg 8592 | -8/Materials | Repaired Imp. EM Shotgun 8634 | -8/Materials | Repaired VSS Leg 8833 | -8/Materials | Discovered new exit (range 5) 8947 | -8/Materials | Repaired VSS Leg 9028 | -8/Materials | Core integrity fell below 50% 9318 | -8/Materials | Core integrity fell below 20% 9333 | -8/Materials | Lost 4 parts (1p1n1u1w) 9426 | -8/Materials | Destroyed self with Rocket Launcher Last Messages --------------- 09396_ Sneak attack on K-01 Serf. 09396_ Destroyed Wheel. 09396_ K-01 Serf system corrupted by crushing effect. 09397_ K-01 Serf system terminally corrupted. 09399_ Acquired 27 matter. 09402_ Processing Tank disabled. 09407_ Titanium Leg destroyed. 09408_ Deuterium Engine destroyed. 09412_ U-05 Engineer builds a Door. 09413_ Hvy. Particle Cannon destroyed. 09421_ Acquired Rocket Launcher. 09426_ G-47 Trooper destroyed. [Achievement: First Step to Greatness] Important note for Steam players: Cogmind player global achievement rates displayed by Steam are all significantly underreported, in some cases by a huge margin, due to how they are calculated by Valve. [Achievement: 5k Club] Map ----- +----------------------------------------------------+ | ?????????????????????????????????????????????# | | ?????????????????????????????????????????????# | | ????????????????????????????????????????????## | | ????????????????????????????????????????????+ | | ??????????????????????????????????????????? ## | | ?????????????????????????????????????????????# | | ?????????????????????????????????????????????# | | ?????????????????????????????????????????????# | | ?????????????????????????????????????????????# | | ?????????????????????????????##########??????# | | ?????????????????????????????? #??????# | | ????????????????????????????? """ #??????# | | ???????????????????????????? """"" #??????# | | ?????????????????????????????""""" #??????# | | ???????????????????????????! """"" ######## | | ??????????????????????????# """ + | | ??????????????????????????# ######## | | ????????????????????????########+###+####????# ### | | ????????????????????????# # +????# #?? | | ????????????????????????#x"""g# #######????# #?? | | ????????????????????????# """ + #??????????# #?? | | ????????????????????????# "" # #??????????# #?? | | ????????????????????????# """ # #??????????# #?? | | ????????????????????????# =x# #??????????# #?? | | ????????????????????????# l% # #??????????? ??? | | ????????????????????????#@ = # #??????????? ??? | | ????????????????????????## # #??????????? ??? | | ??????????????????????????##### #??????????? ??? | | ?????????????????????????????? #??????????? ??? | | ?????????????????????????????? +??????????? ??? | | ?????????????????????????????? #??????????? ??? | | ?????????o??????????????????? ##??????????????? | | ????????????????????????????? #???????????????? | | ?????????????????????????????"" ????????????????? | | ??????????????????????????????" ????????????????? | | ??????????????????????????????? ????????????????? | | ?????????????????????????????????????????????????? | | ?????????????????????????????????????????????????? | | ?????????????????????????????????????????????????? | | ?????????????????????????????????????????????????? | | ?????????????????????????????????????????????????? | | ?????????????????????????????????????????????????? | | ?????????????????????????????????????????????????? | | ?????????????????????????????????????????????????? | | ?????????????????????????????????????????????????? | | ?????????????????????????????????????????????????? | | ?????????????????????????????????????????????????? | | ?????????????????????????????????????????????????? | | ?????????????????????????????????????????????????? | | ?????????????????????????????????????????????????? | +----------------------------------------------------+ Best States ------------- Heat Dissipation 45 Energy Generation 14 Energy Capacity 275 Matter Stores 300 Matter Capacity 300 Sight Range 18 Robot Scan Range 14 Terrain Scan Range 14 Terrain Scan Density 10 Armor Coverage 150 Power Shielding 66 Evasion (%) 59 Targeting Accuracy 6 Defensive Hacking 10 Item Schematics ----------------- None Robot Schematics ------------------ None Fabricated ------------ Nothing Alien Tech Used ----------------- None Achievements -------------- 5k Club Backstab Crack Shot First Step to Greatness Hehehe Librarian Loot Pinata Maybe Next Time I'll Detach My Launcher One Hack Too Far Part-time Mechanic Remodeling Risk Taker Shopping List Storm Trooper Tourist Uninvited Guest Challenges ------------ None Game ------ Seed SkeletonResetJammer Manual? 0 Play Time 03:51:23 Cumulative 3.8 hours Start 2024.04.01 @ 17:42:15 End 2024.04.02 @ 17:03:58 Sessions 5 Manual Loads 0 Difficulty Rogue Special Mode None Game No. 1 Rogue 1 Adventurer 0 Explorer 0 Win Type - Total 0 Types 0/0/0/0/0/0/0/0/0 Lore% 10 Gallery% 6 Achievement% 6 Wizard Run 0 Options --------- Layout 1 ASCII 0 Keyboard 1 Movement Numpad Keybinds 0 Fullscreen 1 Font 24/Smallcaps Map View 50x35 Zoom Use 0% Tactical HUD 1 Map Filters NONE Filters NONE Steam 1 RUN: 1b527074-a0bb-43ac-8ecc-d41faa8a1c10